bitfinex-derivatives/quotes_BTCF0:USTF0_20260221
["timestamp","ask_amount","ask_price","bid_price","bid_amount"]
[1771666634934,0.00016391,68177.0,68168.0,0.90200331]
[1771666635330,0.01483591,68177.0,68168.0,0.90200331]
[1771666636132,0.01483591,68177.0,68168.0,0.88733031]
[1771666636328,0.014672,68176.0,68168.0,0.88733031]
[1771666637042,0.01483591,68177.0,68168.0,0.88733031]
[1771666637240,0.014671,68180.0,68168.0,0.88733031]
[1771666637241,0.014671,68179.0,68168.0,0.88733031]
[1771666638029,0.014671,68179.0,68173.0,0.00088]
[1771666638234,0.014671,68179.0,68168.0,0.88733031]
[1771666638235,4.039e-05,68178.0,68168.0,0.88733031]
[1771666638535,0.014672,68176.0,68168.0,0.88733031]
[1771666639837,0.014669,68192.0,68171.0,0.88733031]
[1771666640036,0.01467,68187.0,68171.0,0.88733031]
[1771666640340,0.01467,68184.0,68173.0,0.88733031]
[1771666640532,0.01467,68186.0,68173.0,0.88733031]
[1771666641139,0.014671,68181.0,68173.0,0.88733031]
[1771666641341,0.014671,68181.0,68172.0,0.014673]
[1771666641342,0.01467,68186.0,68175.0,0.90200231]
[1771666641544,0.014669,68190.0,68176.0,0.90200231]
[1771666641842,0.01467,68187.0,68176.0,0.90200231]
[1771666642044,0.01467,68185.0,68177.0,0.014672]
[1771666642835,0.01467,68186.0,68178.0,0.014671]
[1771666643032,0.01467,68185.0,68177.0,0.90200231]
[1771666643338,0.01467,68185.0,68178.0,0.014671]
[1771666644344,0.01467,68184.0,68178.0,0.014671]
[1771666645242,0.01467,68186.0,68177.0,0.88733031]
[1771666645441,0.014669,68189.0,68183.0,0.88733031]
[1771666645949,0.014667,68198.0,68183.0,0.88733031]
[1771666646242,0.23965503,68197.0,68183.0,0.88733031]
[1771666646448,0.014669,68189.0,68183.0,0.88733031]
[1771666646653,0.014669,68188.0,68183.0,0.88733031]
[1771666647347,0.014667,68198.0,68183.0,0.88733031]
[1771666647653,0.17903555,68210.0,68188.0,0.88733031]
[1771666648038,0.014669,68191.0,68188.0,0.88733031]
[1771666648250,0.014668,68196.0,68188.0,0.88733031]
[1771666648544,0.014669,68190.0,68188.0,0.88733031]
[1771666648742,0.014667,68199.0,68188.0,0.88733031]
[1771666648941,0.014669,68190.0,68188.0,0.88733031]
[1771666649440,0.014667,68199.0,68188.0,0.88733031]
[1771666650348,0.015669,68190.0,68188.0,0.88733031]
[1771666650551,0.014668,68195.0,68188.0,0.88733031]
[1771666650754,0.00642596,68191.0,68188.0,0.88733031]
[1771666650944,0.02109496,68191.0,68188.0,0.88733031]
[1771666651147,0.014669,68190.0,68188.0,0.88733031]
[1771666651448,0.00642596,68191.0,68188.0,0.88733031]
[1771666651652,0.001,68190.0,68188.0,0.88733031]
[1771666651843,0.014668,68192.0,68188.0,0.88733031]
[1771666652643,0.001,68191.0,68188.0,0.88733031]
[1771666653353,0.015668,68192.0,68188.0,0.88733031]
[1771666653750,0.016668,68192.0,68188.0,0.88733031]
[1771666654053,0.014669,68191.0,68188.0,0.88733031]
[1771666654253,0.016669,68191.0,68188.0,0.88733031]
[1771666654741,0.015669,68191.0,68188.0,0.88733031]
[1771666654944,0.014669,68190.0,68179.0,0.73449845]
[1771666655146,0.014669,68189.0,68179.0,0.74916945]
[1771666655447,0.014669,68188.0,68179.0,0.74916945]
[1771666656555,0.015669,68188.0,68179.0,0.74916945]
[1771666657150,0.016669,68188.0,68179.0,0.74916945]
[1771666657957,0.016669,68188.0,68179.0,0.84916945]
[1771666658559,0.19370455,68190.0,68179.0,0.83449845]
[1771666658959,0.19370455,68190.0,68182.0,0.01467]
[1771666659353,0.17903555,68190.0,68182.0,0.01467]
[1771666659854,0.18103555,68190.0,68182.0,0.01467]
[1771666660250,0.18003555,68190.0,68183.0,0.01467]
[1771666660450,0.18103555,68190.0,68183.0,0.01467]
[1771666660850,0.002,68190.0,68183.0,0.01467]
[1771666662260,0.002,68190.0,68184.0,0.01467]
[1771666662949,0.002,68190.0,68185.0,0.01467]
[1771666663351,0.001,68190.0,68185.0,0.01467]
[1771666663552,0.002,68190.0,68185.0,0.01467]
[1771666664660,0.002,68190.0,68184.0,0.01467]
[1771666664962,0.001,68190.0,68184.0,0.01467]
[1771666665159,0.002,68190.0,68184.0,0.01467]
[1771666666060,0.92405266,68190.0,68170.0,0.1]
[1771666666265,0.3580711,68180.0,68166.0,0.79118156]
[1771666666457,0.3580711,68180.0,68169.0,0.014673]
[1771666666458,0.17903555,68176.0,68169.0,0.014673]
[1771666666764,0.17903555,68176.0,68160.0,0.1]
[1771666666765,0.17903555,68180.0,68172.0,0.014673]
[1771666667163,0.01467,68183.0,68172.0,0.014673]
[1771666669361,0.014671,68182.0,68172.0,0.014673]
[1771666669557,0.014671,68182.0,68170.0,0.014673]
[1771666669762,0.014671,68181.0,68170.0,0.014673]
[1771666670164,0.17903555,68180.0,68171.0,0.014673]
[1771666671063,0.17903555,68180.0,68174.0,0.00088]
[1771666671362,0.014671,68181.0,68171.0,0.014673]
[1771666671561,0.014671,68181.0,68170.0,0.014673]
[1771666674669,0.92305266,68198.0,68175.0,0.72764204]
[1771666674862,0.014669,68191.0,68179.0,0.014671]
[1771666675174,0.23214622,68190.0,68180.0,0.014671]
[1771666675374,0.014669,68191.0,68180.0,0.014671]
[1771666675668,0.23095549,68190.0,68180.0,0.014671]
[1771666675970,0.014669,68191.0,68180.0,0.014671]
[1771666676171,0.23195549,68190.0,68180.0,0.014671]
[1771666676369,0.001,68190.0,68180.0,0.014671]
[1771666678167,0.002,68190.0,68180.0,0.014671]
[1771666679675,0.002,68190.0,68180.0,0.029342]
[1771666680764,0.002,68190.0,68180.0,0.014671]
[1771666681273,0.002,68190.0,68181.0,0.014671]
[1771666682378,0.014667,68197.0,68182.0,0.01467]
[1771666682575,0.24563921,68196.0,68186.0,0.014669]
[1771666682772,0.23097121,68195.0,68186.0,0.014669]
[1771666682975,0.23097121,68195.0,68182.0,0.01467]
[1771666682976,0.24563921,68194.0,68183.0,0.01467]
[1771666683276,0.23097121,68193.0,68183.0,0.01467]
[1771666683577,0.014668,68194.0,68183.0,0.01467]
[1771666683777,0.23096477,68193.0,68183.0,0.01467]
[1771666684073,0.014668,68194.0,68183.0,0.01467]
[1771666684275,0.2309626,68193.0,68183.0,0.01467]
[1771666684484,0.001,68195.0,68187.0,0.014669]
[1771666684674,0.24563694,68194.0,68181.0,0.114671]
[1771666684876,0.014668,68192.0,68182.0,0.01467]
[1771666685583,0.015668,68193.0,68182.0,0.01467]
[1771666686077,0.001,68192.0,68182.0,0.01467]
[1771666686582,0.014668,68193.0,68182.0,0.01467]
[1771666686777,0.015668,68193.0,68182.0,0.01467]
[1771666687182,0.014668,68193.0,68182.0,0.01467]
[1771666687382,0.001,68192.0,68183.0,0.01467]
[1771666687883,0.001,68192.0,68182.0,0.01467]
[1771666688083,0.001,68192.0,68182.0,0.02934]
[1771666688786,0.014668,68193.0,68182.0,0.02934]
[1771666688984,0.001,68192.0,68182.0,0.02934]
[1771666689185,0.001,68192.0,68183.0,0.01467]
[1771666689578,0.002,68192.0,68183.0,0.01467]
[1771666689776,0.001,68192.0,68183.0,0.01467]
[1771666690486,0.001,68192.0,68184.0,0.01467]
[1771666691385,0.002,68192.0,68184.0,0.01467]
[1771666692083,0.002,68192.0,68186.0,0.00088]
[1771666692287,0.002,68192.0,68184.0,0.01467]
[1771666692288,0.001,68192.0,68184.0,0.01467]
[1771666692790,0.014668,68193.0,68184.0,0.01467]
[1771666693289,0.014668,68196.0,68185.0,0.01467]
[1771666693590,0.014668,68196.0,68180.0,0.26403425]
[1771666693591,0.2456832,68195.0,68183.0,0.01467]
[1771666693788,0.2310152,68194.0,68184.0,0.01467]
[1771666693980,0.2310152,68193.0,68184.0,0.01467]
[1771666694181,0.2310152,68192.0,68184.0,0.01467]
[1771666694475,0.014668,68194.0,68184.0,0.01467]
[1771666694674,0.23102107,68193.0,68184.0,0.01467]
[1771666694878,0.23102107,68192.0,68184.0,0.01467]
[1771666695079,0.014668,68194.0,68184.0,0.01467]
[1771666695279,0.23102268,68193.0,68184.0,0.01467]
[1771666695484,0.23102268,68192.0,68184.0,0.01467]
[1771666695684,0.014668,68195.0,68185.0,0.01467]
[1771666695885,0.014669,68191.0,68180.0,0.014671]
[1771666696087,0.014668,68194.0,68180.0,0.014671]
[1771666696390,0.014669,68192.0,68180.0,0.014671]
[1771666696979,0.014668,68194.0,68182.0,0.01467]
[1771666697291,0.23102493,68193.0,68183.0,0.01467]
[1771666697491,0.23102493,68192.0,68183.0,0.01467]
[1771666697694,0.014668,68194.0,68183.0,0.01467]
[1771666697890,0.23103988,68193.0,68183.0,0.01467]
[1771666698189,0.23103988,68192.0,68183.0,0.01467]
[1771666698388,0.014668,68194.0,68183.0,0.01467]
[1771666698590,0.2457261,68193.0,68183.0,0.01467]
[1771666698792,0.2310581,68192.0,68182.0,0.02934]
[1771666698991,0.014668,68193.0,68182.0,0.01467]
[1771666699291,0.2310581,68192.0,68182.0,0.01467]
[1771666699491,0.014668,68193.0,68182.0,0.01467]
[1771666699789,0.23108067,68192.0,68183.0,0.01467]
[1771666699990,0.014668,68192.0,68182.0,0.01467]
[1771666700191,0.23110466,68191.0,68182.0,0.01467]
[1771666700492,0.014668,68193.0,68183.0,0.01467]
[1771666700692,0.23110863,68192.0,68183.0,0.01467]
[1771666700888,0.23110863,68191.0,68183.0,0.01467]
[1771666701190,0.014668,68193.0,68183.0,0.01467]
[1771666701392,0.23114282,68192.0,68183.0,0.01467]
[1771666701591,0.23114282,68191.0,68183.0,0.01467]
[1771666701789,0.014668,68193.0,68183.0,0.01467]
[1771666701991,0.23114282,68192.0,68183.0,0.01467]
[1771666702191,0.23114282,68191.0,68187.0,0.00274756]
[1771666702378,0.014668,68193.0,68187.0,0.00274756]
[1771666702584,0.23118698,68192.0,68187.0,0.00274756]
[1771666702888,0.014668,68193.0,68187.0,0.00274756]
[1771666702889,0.23118698,68191.0,68187.0,0.00274756]
[1771666703086,0.014668,68193.0,68189.0,0.00274756]
[1771666703287,0.22522273,68192.0,68189.0,0.00274756]
[1771666703488,0.22522273,68191.0,68189.0,0.00274756]
[1771666703685,0.014668,68193.0,68189.0,0.00274756]
[1771666703889,0.2252252,68192.0,68189.0,0.00274756]
[1771666704083,0.2252252,68191.0,68190.0,0.00274756]
[1771666704290,0.2252252,68191.0,68183.0,0.01467]
[1771666704490,0.2252252,68190.0,68183.0,0.01467]
[1771666704679,0.014668,68193.0,68183.0,0.01467]
[1771666704884,0.22534205,68192.0,68183.0,0.01467]
[1771666705083,0.22534205,68191.0,68183.0,0.01467]
[1771666705284,0.22534205,68190.0,68183.0,0.01467]
[1771666705485,0.015668,68193.0,68183.0,0.01467]
[1771666705693,0.22534417,68192.0,68183.0,0.01467]
[1771666705896,0.22534417,68191.0,68183.0,0.01467]
[1771666706192,0.22534417,68190.0,68183.0,0.01467]
[1771666706385,0.014668,68193.0,68183.0,0.01467]
[1771666706585,0.225347,68192.0,68183.0,0.01467]
[1771666706789,0.225347,68191.0,68183.0,0.01467]
[1771666706991,0.225347,68190.0,68183.0,0.01467]
[1771666707290,0.014668,68193.0,68183.0,0.01467]
[1771666707492,0.22535049,68192.0,68183.0,0.01467]
[1771666707689,0.22535049,68191.0,68183.0,0.01467]
[1771666707893,0.22535049,68190.0,68183.0,0.01467]
[1771666708092,0.014668,68192.0,68182.0,0.014671]
[1771666708292,0.22535416,68191.0,68182.0,0.014671]
[1771666708481,0.22535416,68190.0,68182.0,0.014671]
[1771666708686,0.014668,68192.0,68182.0,0.014671]
[1771666708887,0.22535463,68191.0,68182.0,0.014671]
[1771666709081,0.014668,68192.0,68182.0,0.014671]
[1771666709082,0.22535463,68190.0,68182.0,0.014671]
[1771666709289,0.014668,68192.0,68182.0,0.014671]
[1771666709490,0.22535984,68191.0,68182.0,0.014671]
[1771666709696,0.22535984,68190.0,68181.0,0.014671]
[1771666709989,0.014669,68191.0,68181.0,0.014671]
[1771666710189,0.22535984,68190.0,68181.0,0.014671]
[1771666710394,0.014668,68192.0,68182.0,0.01467]
[1771666710595,0.22536029,68191.0,68182.0,0.01467]
[1771666710785,0.22536029,68190.0,68182.0,0.01467]
[1771666710986,0.014668,68192.0,68182.0,0.01467]
[1771666711190,0.22536029,68191.0,68182.0,0.01467]
[1771666711391,0.22536029,68190.0,68182.0,0.01467]
[1771666711686,0.014668,68192.0,68182.0,0.01467]
[1771666711889,0.22536723,68191.0,68182.0,0.01467]
[1771666712089,0.22536723,68190.0,68182.0,0.01467]
[1771666712392,0.014668,68192.0,68182.0,0.01467]
[1771666712594,0.22537913,68191.0,68182.0,0.01467]
[1771666712795,0.22537913,68190.0,68182.0,0.01467]
[1771666712995,0.014668,68192.0,68182.0,0.01467]
[1771666713203,0.22537913,68191.0,68182.0,0.01467]
[1771666713495,0.014668,68192.0,68182.0,0.01467]
[1771666713694,0.22537937,68191.0,68182.0,0.01467]
[1771666713898,0.014668,68192.0,68182.0,0.01467]
[1771666714096,0.22537937,68191.0,68182.0,0.01467]
[1771666714298,0.014669,68191.0,68181.0,0.014671]
[1771666714603,0.014668,68192.0,68182.0,0.014671]
[1771666714899,0.22537944,68191.0,68182.0,0.014671]
[1771666715100,0.014668,68192.0,68182.0,0.014671]
[1771666715290,0.22537944,68191.0,68182.0,0.014671]
[1771666715491,0.014668,68192.0,68182.0,0.014671]
[1771666715799,0.22537986,68191.0,68182.0,0.014671]
[1771666715987,0.014668,68192.0,68182.0,0.014671]
[1771666716192,0.22537986,68191.0,68182.0,0.014671]
[1771666716396,0.014668,68192.0,68182.0,0.014671]
[1771666716688,0.22538008,68191.0,68182.0,0.014671]
[1771666716901,0.014668,68192.0,68182.0,0.014671]
[1771666717101,0.22538008,68191.0,68182.0,0.014671]
[1771666717303,0.014668,68192.0,68182.0,0.014671]
[1771666717600,0.2253806,68191.0,68182.0,0.014671]
[1771666717798,0.014668,68192.0,68182.0,0.014671]
[1771666717997,0.2253806,68191.0,68182.0,0.014671]
[1771666718205,0.014668,68192.0,68182.0,0.014671]
[1771666718501,0.22538101,68191.0,68182.0,0.014671]
[1771666718703,0.014668,68192.0,68182.0,0.014671]
[1771666718898,0.22538101,68191.0,68182.0,0.014671]
[1771666719203,0.014668,68192.0,68182.0,0.014671]
[1771666719392,0.22538186,68191.0,68182.0,0.014671]
[1771666719589,0.014668,68192.0,68182.0,0.014671]
[1771666719793,0.22538186,68191.0,68182.0,0.014671]
[1771666719992,0.22538186,68190.0,68182.0,0.014671]
[1771666720204,0.014668,68192.0,68182.0,0.014671]
[1771666720398,0.22538249,68191.0,68182.0,0.014671]
[1771666720598,0.22538249,68190.0,68182.0,0.014671]
[1771666720799,0.014668,68192.0,68182.0,0.014671]
[1771666720998,0.22538249,68191.0,68182.0,0.014671]
[1771666721199,0.22538249,68190.0,68182.0,0.014671]
[1771666721402,0.014668,68192.0,68182.0,0.014671]
[1771666721599,0.22538272,68191.0,68182.0,0.014671]
[1771666721805,0.014668,68193.0,68184.0,0.01467]
[1771666722003,0.22538272,68192.0,68184.0,0.01467]
[1771666722195,0.22538272,68191.0,68184.0,0.01467]
[1771666722395,0.014668,68193.0,68183.0,0.01467]
[1771666722599,0.2253836,68192.0,68183.0,0.01467]
[1771666722898,0.2253836,68191.0,68183.0,0.01467]
[1771666723102,0.014668,68193.0,68183.0,0.01467]
[1771666723399,0.2253836,68192.0,68183.0,0.01467]
[1771666723599,0.2253836,68191.0,68183.0,0.01467]
[1771666723801,0.2253836,68190.0,68183.0,0.01467]
[1771666724102,0.2253836,68189.0,68183.0,0.01467]
[1771666724305,0.2253836,68188.0,68183.0,0.01467]
[1771666724601,0.014668,68193.0,68183.0,0.01467]
[1771666724802,0.22538615,68192.0,68183.0,0.01467]
[1771666725005,0.22538615,68191.0,68183.0,0.01467]
[1771666725205,0.22538615,68190.0,68183.0,0.01467]
[1771666725398,0.22538615,68189.0,68183.0,0.01467]
[1771666725599,0.22538615,68189.0,68182.0,0.01467]
[1771666725600,0.22538615,68188.0,68184.0,0.01467]
[1771666725904,0.014668,68193.0,68184.0,0.01467]
[1771666726103,0.22538654,68192.0,68184.0,0.01467]
[1771666726298,0.22538654,68191.0,68184.0,0.01467]
[1771666726498,0.22538654,68190.0,68184.0,0.01467]
[1771666726793,0.22538654,68189.0,68183.0,0.01467]
[1771666726997,0.014668,68193.0,68182.0,0.01467]
[1771666726998,0.22538654,68188.0,68184.0,0.01467]
[1771666727196,0.014668,68193.0,68184.0,0.01467]
[1771666727397,0.22538654,68192.0,68184.0,0.01467]
[1771666727597,0.22538654,68191.0,68184.0,0.01467]
[1771666727903,0.22538654,68190.0,68184.0,0.01467]
[1771666728103,0.22538654,68189.0,68184.0,0.01467]
[1771666728406,0.014668,68195.0,68186.0,0.01467]
[1771666732702,0.014667,68197.0,68182.0,0.01467]
[1771666732901,0.014668,68194.0,68184.0,0.01467]
[1771666733102,0.014668,68193.0,68184.0,0.01467]
[1771666733403,0.014668,68193.0,68184.0,0.02934]
[1771666733804,0.014668,68193.0,68184.0,0.01467]
[1771666740315,0.21128171,68192.0,68184.0,0.01467]
[1771666740514,0.014668,68193.0,68184.0,0.01467]
[1771666740714,0.21128171,68192.0,68184.0,0.01467]
[1771666741019,0.014668,68193.0,68184.0,0.01467]
[1771666741318,0.21128197,68192.0,68184.0,0.01467]
[1771666741518,0.014668,68193.0,68184.0,0.01467]
[1771666741719,0.21128098,68192.0,68184.0,0.01467]
[1771666741915,0.014668,68193.0,68184.0,0.01467]
[1771666742121,0.21128098,68192.0,68183.0,0.01467]
[1771666742421,0.014668,68194.0,68184.0,0.02934]
[1771666742619,0.21171392,68193.0,68184.0,0.01467]
[1771666742825,0.21171392,68192.0,68184.0,0.01467]
[1771666743026,0.014668,68194.0,68184.0,0.01467]
[1771666743329,0.21171392,68193.0,68184.0,0.01467]
[1771666743524,0.21171392,68192.0,68184.0,0.01467]
[1771666743718,0.014668,68194.0,68184.0,0.01467]
[1771666743918,0.21171328,68193.0,68184.0,0.01467]
[1771666744117,0.21171328,68192.0,68184.0,0.01467]
[1771666744319,0.014668,68194.0,68184.0,0.01467]
[1771666744519,0.21171277,68193.0,68184.0,0.01467]
[1771666744726,0.21171277,68192.0,68184.0,0.01467]
[1771666744929,0.014668,68194.0,68184.0,0.01467]
[1771666745121,0.21171277,68193.0,68184.0,0.01467]
[1771666745423,0.21171277,68192.0,68184.0,0.01467]
[1771666745721,0.014668,68194.0,68184.0,0.01467]
[1771666745922,0.21171228,68193.0,68184.0,0.01467]
[1771666746122,0.21171228,68192.0,68184.0,0.01467]
[1771666746323,0.014668,68194.0,68184.0,0.01467]
[1771666746621,0.21171188,68193.0,68184.0,0.01467]
[1771666746815,0.21171188,68192.0,68184.0,0.01467]
[1771666747015,0.014668,68194.0,68184.0,0.01467]
[1771666747333,0.21171188,68193.0,68184.0,0.01467]
[1771666747524,0.014668,68194.0,68184.0,0.01467]
[1771666747525,0.21171188,68192.0,68184.0,0.01467]
[1771666747724,0.014668,68194.0,68184.0,0.01467]
[1771666748027,0.21171148,68193.0,68184.0,0.02934]
[1771666748223,0.21171148,68192.0,68184.0,0.02934]
[1771666748423,0.014668,68194.0,68184.0,0.02934]
[1771666748624,0.21171148,68193.0,68184.0,0.02934]
[1771666748825,0.21171148,68192.0,68184.0,0.02934]
[1771666749022,0.014668,68194.0,68184.0,0.02934]
[1771666749228,0.21171148,68193.0,68184.0,0.02934]
[1771666749427,0.21171148,68192.0,68184.0,0.02934]
[1771666749628,0.014668,68194.0,68184.0,0.01467]
[1771666749827,0.22637936,68193.0,68184.0,0.01467]
[1771666750026,0.21171136,68192.0,68184.0,0.01467]
[1771666750222,0.014668,68193.0,68184.0,0.01467]
[1771666750422,0.21171135,68192.0,68184.0,0.01467]
[1771666750619,0.014668,68193.0,68184.0,0.01467]
[1771666750823,0.21171135,68192.0,68184.0,0.01467]
[1771666751019,0.014668,68193.0,68184.0,0.01467]
[1771666751230,0.21171135,68192.0,68184.0,0.01467]
[1771666751432,0.014668,68194.0,68184.0,0.02934]
[1771666751732,0.21171135,68193.0,68185.0,0.01467]
[1771666752035,0.21171135,68192.0,68185.0,0.01467]
[1771666752231,0.014668,68194.0,68185.0,0.01467]
[1771666752426,0.21171142,68193.0,68185.0,0.01467]
[1771666752629,0.21171142,68192.0,68185.0,0.01467]
[1771666752827,0.014668,68194.0,68185.0,0.01467]
[1771666753026,0.21171142,68193.0,68185.0,0.01467]
[1771666753229,0.21171142,68192.0,68185.0,0.01467]
[1771666753428,0.21171148,68191.0,68185.0,0.01467]
[1771666753633,0.014668,68194.0,68185.0,0.01467]
[1771666753833,0.21171148,68193.0,68185.0,0.01467]
[1771666754038,0.94556206,68198.0,68180.0,0.19372938]
[1771666754039,0.014665,68207.0,68187.0,0.014669]
[1771666754228,0.014666,68205.0,68191.0,0.014668]
[1771666754431,0.014666,68205.0,68195.0,0.014668]
[1771666754727,0.014666,68205.0,68191.0,0.014668]
[1771666754728,0.17905838,68210.0,68199.0,0.014667]
[1771666755043,0.014665,68209.0,68199.0,0.014667]
[1771666755338,0.014664,68211.0,68201.0,0.014666]
[1771666756536,0.014664,68213.0,68201.0,0.014666]
[1771666756730,0.014664,68212.0,68201.0,0.014666]
[1771666756926,0.014663,68217.0,68206.0,0.014665]
[1771666757127,0.014663,68216.0,68206.0,0.014665]
[1771666757838,0.014663,68217.0,68207.0,0.014665]
[1771666761538,0.029326,68217.0,68207.0,0.014665]
[1771666761745,0.014663,68216.0,68207.0,0.014665]
[1771666763744,0.014663,68216.0,68205.0,0.014666]
[1771666763745,0.17905838,68220.0,68210.0,0.014664]
[1771666763944,0.014662,68222.0,68211.0,0.014664]
[1771666764344,0.014662,68221.0,68211.0,0.014664]
[1771666764540,0.014662,68221.0,68210.0,0.19372238]
[1771666764746,0.014662,68221.0,68211.0,0.014664]
[1771666765044,0.014662,68221.0,68212.0,0.014664]
[1771666766346,0.85366347,68227.0,68214.0,0.014664]
[1771666766645,0.014662,68223.0,68214.0,0.014664]
[1771666767029,0.014662,68223.0,68213.0,0.014664]
[1771666767746,0.014662,68222.0,68213.0,0.014664]
[1771666768238,0.014663,68219.0,68209.0,0.014665]
[1771666768432,0.014662,68220.0,68210.0,0.014664]
[1771666768640,0.014662,68220.0,68211.0,0.014664]
[1771666768837,0.014662,68221.0,68211.0,0.014664]
[1771666769345,0.014662,68221.0,68212.0,0.014664]
[1771666771144,0.85366347,68224.0,68215.0,0.014663]
[1771666771448,0.014661,68226.0,68216.0,0.014663]
[1771666771650,0.014661,68225.0,68216.0,0.014663]
[1771666773459,0.029322,68225.0,68216.0,0.014663]
[1771666774344,0.014662,68224.0,68216.0,0.014663]
[1771666775051,0.014662,68224.0,68215.0,0.014663]
[1771666775258,0.014662,68223.0,68214.0,0.014664]
[1771666775449,0.014662,68223.0,68214.0,0.029328]
[1771666775648,0.014662,68223.0,68214.0,0.014664]
[1771666775843,0.014662,68223.0,68212.0,0.014664]
[1771666775844,0.014662,68221.0,68212.0,0.014664]
[1771666776147,0.014662,68221.0,68211.0,0.014664]
[1771666776347,0.014662,68222.0,68214.0,0.002]
[1771666777350,0.014662,68220.0,68211.0,0.014664]
[1771666777559,0.014662,68221.0,68210.0,0.19372238]
[1771666777755,0.014662,68221.0,68212.0,0.014664]
[1771666778553,0.014662,68221.0,68211.0,0.014664]
[1771666778949,0.014656,68252.0,68232.0,0.01466]
[1771666779143,0.43949183,68264.0,68225.0,0.014661]
[1771666779144,0.86170648,68246.0,68229.0,0.01466]
[1771666779343,0.86170748,68243.0,68231.0,0.01466]
[1771666779542,0.84704948,68243.0,68232.0,0.01466]
[1771666779741,0.84704948,68243.0,68230.0,0.17905838]
[1771666779942,0.0123938,68242.0,68236.0,0.014659]
[1771666780144,0.0123938,68242.0,68237.0,0.014659]
[1771666780347,0.86170548,68251.0,68240.0,0.014658]
[1771666780550,0.0123938,68248.0,68240.0,0.19371638]
[1771666781248,0.0123938,68248.0,68242.0,0.014657]
[1771666783965,0.0123938,68248.0,68241.0,0.014658]
[1771666784548,0.0123938,68248.0,68242.0,0.014657]
[1771666785058,0.0123938,68248.0,68242.0,0.015617]
[1771666785256,0.0123938,68248.0,68242.0,0.014657]
[1771666785755,0.0123938,68248.0,68243.0,0.014657]
[1771666787459,0.0123938,68247.0,68243.0,0.014657]
[1771666787757,0.0123938,68250.0,68243.0,0.014657]
[1771666788457,0.014651,68273.0,68241.0,0.8273964]
[1771666788663,0.014651,68273.0,68240.0,0.35811676]
[1771666788664,0.01465,68276.0,68263.0,0.014653]
[1771666788847,0.014651,68272.0,68264.0,0.014653]
[1771666789047,0.17905838,68280.0,68264.0,0.014653]
[1771666789356,0.014651,68274.0,68266.0,0.014652]
[1771666789555,0.014651,68272.0,68265.0,0.014653]
[1771666789758,0.014651,68273.0,68266.0,0.014652]
[1771666790662,0.01465,68278.0,68272.0,0.014651]
[1771666790866,0.01465,68277.0,68269.0,0.014652]
[1771666791162,0.46176444,68276.0,68240.0,0.17905838]
[1771666791361,0.46176444,68276.0,68225.0,1.6220143]
[1771666791362,0.014653,68263.0,68248.0,0.014656]
[1771666791554,0.014653,68264.0,68252.0,0.014655]
[1771666791963,0.014653,68263.0,68256.0,0.014654]
[1771666792153,0.014653,68263.0,68254.0,0.014655]
[1771666792357,0.014653,68262.0,68252.0,0.014655]
[1771666792658,0.014653,68262.0,68250.0,0.19371438]
[1771666792860,0.014653,68265.0,68257.0,0.014654]
[1771666793057,0.014652,68267.0,68259.0,0.014654]
[1771666793358,0.014653,68266.0,68259.0,0.014654]
[1771666793662,0.014652,68267.0,68251.0,0.014656]
[1771666793663,0.014653,68264.0,68251.0,0.014656]
[1771666794061,0.014653,68263.0,68258.0,0.00088]
[1771666794365,0.014653,68264.0,68256.0,0.014655]
[1771666794863,0.014653,68263.0,68256.0,0.014655]
[1771666796060,0.014653,68263.0,68254.0,0.014655]
[1771666796264,0.014653,68263.0,68253.0,0.014655]
[1771666797259,0.014653,68265.0,68256.0,0.014655]
[1771666797565,0.014653,68264.0,68256.0,0.014655]
[1771666797759,0.014653,68263.0,68254.0,0.014655]
[1771666797959,0.014653,68264.0,68253.0,0.8273964]
[1771666798159,0.029308,68262.0,68253.0,0.8420514]
[1771666798464,0.014654,68260.0,68253.0,0.8420514]
[1771666798860,0.014654,68259.0,68253.0,0.8420514]
[1771666799063,0.014654,68258.0,68251.0,0.014656]
[1771666799365,0.014654,68259.0,68256.0,0.001]
[1771666799564,0.014654,68259.0,68251.0,0.014656]
[1771666799767,0.014654,68260.0,68252.0,0.014655]
[1771666800959,0.014654,68259.0,68249.0,0.014656]
[1771666801160,0.014654,68259.0,68250.0,0.014656]
[1771666801368,0.014654,68261.0,68251.0,0.014656]
[1771666801562,0.014654,68261.0,68252.0,0.014655]
[1771666803161,0.014653,68263.0,68249.0,0.014656]
[1771666803363,0.014652,68268.0,68253.0,0.014655]
[1771666803663,0.014653,68263.0,68254.0,0.014655]
[1771666804973,0.08,68302.0,68255.0,0.8273964]
[1771666805273,0.08,68302.0,68279.0,0.014649]
[1771666805274,0.014648,68289.0,68279.0,0.014649]
[1771666805470,0.014647,68290.0,68279.0,0.014649]
[1771666805776,0.014647,68290.0,68281.0,0.014649]
[1771666806071,0.014644,68305.0,68284.0,0.014648]
[1771666806271,0.014646,68295.0,68287.0,0.014648]
[1771666806485,0.01537827,68295.0,68287.0,0.014648]
[1771666806670,0.014646,68296.0,68288.0,0.014648]
[1771666806871,0.014646,68296.0,68289.0,0.014648]
[1771666806872,0.00073227,68291.0,68289.0,0.014648]
[1771666807370,0.00073227,68290.0,68289.0,0.014648]
[1771666807568,0.001,68295.0,68289.0,0.014648]
[1771666808167,0.014646,68296.0,68289.0,0.014648]
[1771666808376,0.001,68291.0,68289.0,0.014648]
[1771666808577,0.014646,68296.0,68289.0,0.014648]
[1771666808975,0.001,68291.0,68290.0,0.014647]
[1771666809175,0.014646,68296.0,68290.0,0.014647]
[1771666809674,0.015646,68296.0,68290.0,0.014647]
[1771666809876,0.001,68295.0,68290.0,0.014647]
[1771666810277,0.015646,68296.0,68288.0,0.014648]
[1771666810477,0.016646,68296.0,68288.0,0.014648]
[1771666810873,0.014646,68295.0,68288.0,0.014648]
[1771666811074,0.015646,68295.0,68288.0,0.014648]